bitfinex/quotes_SOLUSD_20250717
["timestamp","ask_amount","ask_price","bid_price","bid_amount"]
[1752733994802,0.71,173.29,173.25,7.98538094]
[1752733995213,0.71,173.29,173.24,5.77228166]
[1752733995407,0.71,173.28,173.24,13.7576626]
[1752733995733,0.71,173.27,173.24,13.7576626]
[1752733996050,0.71,173.27,173.24,5.77228166]
[1752733996201,0.71,173.27,173.24,13.7576626]
[1752733996402,0.71,173.3,173.25,7.98538094]
[1752733996599,0.71,173.29,173.25,7.98538094]
[1752733996803,0.71,173.28,173.24,13.7576626]
[1752733997016,0.71,173.27,173.23,13.75801208]
[1752733997814,0.71,173.27,173.24,7.98538094]
[1752733998143,7.98538094,173.3,173.25,13.75738671]
[1752733998312,10.20128094,173.31,173.26,7.98538094]
[1752733999132,0.71,173.3,173.26,7.98538094]
[1752733999727,0.71,173.29,173.26,7.98538094]
[1752734000136,0.71,173.29,173.25,5.77200577]
[1752734000435,2.2159,173.31,173.26,7.98538094]
[1752734000604,1.5059,173.31,173.26,7.98538094]
[1752734000804,0.71,173.3,173.26,7.98538094]
[1752734001217,0.71,173.29,173.26,7.98538094]
[1752734001437,0.71,173.29,173.25,5.77200577]
[1752734001639,0.71,173.29,173.25,13.75738671]
[1752734002135,8.69538094,173.28,173.21,14.99295758]
[1752734002348,7.98538094,173.26,173.21,14.31871966]
[1752734002533,0.71,173.26,173.23,7.98538094]
[1752734002725,8.69538094,173.28,173.21,6.33333872]
[1752734002926,7.98538094,173.27,173.23,7.98538094]
[1752734003143,8.69538094,173.27,173.23,7.98538094]
[1752734003531,0.71,173.26,173.22,7.98538094]
[1752734003737,0.71,173.26,173.22,13.75812517]
[1752734003923,0.71,173.26,173.23,7.98538094]
[1752734004124,0.71,173.26,173.22,5.77274423]
[1752734004323,0.71,173.26,173.23,7.98538094]
[1752734004844,0.66,173.25,173.22,7.98538094]
[1752734005044,0.66,173.24,173.2,7.98538094]
[1752734005224,0.66,173.23,173.2,7.98538094]
[1752734005427,0.66,173.23,173.19,5.77400542]
[1752734005640,0.66,173.23,173.19,13.75938636]
[1752734005832,0.66,173.23,173.2,7.98538094]
[1752734006062,0.66,173.23,173.19,5.77400542]
[1752734006348,8.64538094,173.25,173.2,13.75881498]
[1752734006551,0.66,173.24,173.2,13.75881498]
[1752734006918,0.66,173.24,173.2,5.77343404]
[1752734007125,0.66,173.24,173.2,13.75881498]
[1752734007358,0.66,173.24,173.19,13.75926765]
[1752734007525,0.66,173.24,173.18,50.02962966]
[1752734007853,7.98538094,173.22,173.18,44.25538094]
[1752734008030,8.64538094,173.22,173.18,8.01538094]
[1752734008224,0.66,173.21,173.18,8.01538094]
[1752734008724,0.66,173.21,173.18,13.78968394]
[1752734008928,8.64538094,173.23,173.18,5.804303]
[1752734009145,0.66,173.22,173.18,13.78968394]
[1752734009621,0.66,173.22,173.19,7.98538094]
[1752734009823,0.66,173.21,173.18,0.03]
[1752734010235,0.66,173.21,173.19,0.03]
[1752734011346,0.66,173.2,173.19,0.03]
[1752734012340,14.41905299,173.2,173.19,0.03]
[1752734013368,6.43367205,173.2,173.19,0.03]
[1752734013524,14.41905299,173.2,173.19,0.03]
[1752734014124,6.43367205,173.2,173.19,0.03]
[1752734014624,14.41905299,173.2,173.19,0.03]
[1752734014928,6.43367205,173.2,173.19,0.03]
[1752734015323,14.41905299,173.2,173.19,0.03]
[1752734017549,57.20373696,173.2,173.19,0.03]
[1752734017746,49.21835602,173.2,173.18,0.03]
[1752734017936,44.42538094,173.19,173.18,0.03]
[1752734018248,47.26253612,173.19,173.18,0.03]
[1752734018750,90.65093907,173.19,173.12,0.03]
[1752734018932,7.98538094,173.13,173.12,0.03]
[1752734019422,8.64538094,173.13,173.12,0.03]
[1752734019622,0.66,173.13,173.12,0.03]
[1752734019921,8.64538094,173.13,173.12,0.03]
[1752734020741,14.4213874,173.13,173.12,0.03]
[1752734022036,0.66,173.13,173.12,0.03]
[1752734022343,8.64538094,173.13,173.12,0.03]
[1752734022548,14.4213874,173.13,173.12,0.03]
[1752734025244,6.43600646,173.13,173.12,0.03]
[1752734025446,14.4213874,173.13,173.12,0.03]
[1752734025954,50.2013874,173.13,173.12,0.03]
[1752734026136,14.4213874,173.13,173.12,0.03]
[1752734026334,50.2213874,173.13,173.12,0.03]
[1752734026536,50.7213874,173.13,173.12,0.03]
[1752734026736,14.9213874,173.13,173.12,0.03]
[1752734026952,50.7213874,173.13,173.12,0.03]
[1752734027331,67.50607137,173.13,173.12,0.03]
[1752734028253,50.7213874,173.13,173.12,0.03]
[1752734028460,67.50607137,173.13,173.12,0.03]
[1752734029747,67.00607137,173.13,173.12,0.03]
[1752734030061,59.02069043,173.13,173.12,0.03]
[1752734030243,67.00607137,173.13,173.12,0.03]
[1752734030861,8.64538094,173.13,173.12,0.03]
[1752734031150,7.98538094,173.13,173.12,0.03]
[1752734031466,14.4213874,173.13,173.12,0.03]
[1752734031774,31.20607137,173.13,173.12,0.03]
[1752734032063,31.70607137,173.13,173.12,0.03]
[1752734032247,31.20607137,173.13,173.12,0.03]
[1752734032656,57.20607137,173.13,173.12,0.03]
[1752734033048,54.68281469,173.13,173.12,0.03]
[1752734034089,5.77572993,173.14,173.12,0.03]
[1752734034242,5.46212426,173.15,173.12,0.59]
[1752734034564,5.46212426,173.13,173.12,0.03]
[1752734034745,0.68,173.14,173.12,0.03]
[1752734034945,8.68689894,173.13,173.12,0.03]
[1752734035748,50.2429054,173.13,173.12,0.03]
[1752734035948,42.23600646,173.13,173.12,0.03]
[1752734036155,50.2429054,173.13,173.12,0.03]
[1752734036642,42.23600646,173.13,173.12,0.03]
[1752734036842,50.2429054,173.13,173.12,0.03]
[1752734037558,36.46,173.13,173.12,0.03]
[1752734037890,35.78,173.13,173.12,0.03]
[1752734038173,43.78689894,173.13,173.12,0.03]
[1752734038343,35.78,173.13,173.12,0.03]
[1752734038546,8.00689894,173.13,173.12,0.03]
[1752734039161,8.68689894,173.13,173.12,0.03]
[1752734039554,14.4629054,173.13,173.12,0.03]
[1752734039749,31.24758937,173.13,173.12,0.03]
[1752734041191,67.02758937,173.13,173.12,0.03]
[1752734041503,23.24069043,173.13,173.12,0.03]
[1752734041710,153.87574795,173.14,173.12,0.03]
[1752734041876,43.76689894,173.13,173.12,0.03]
[1752734042196,44.44689894,173.13,173.12,0.03]
[1752734042497,36.44,173.13,173.12,0.03]
[1752734042706,44.44689894,173.13,173.12,0.03]
[1752734043483,50.2229054,173.13,173.12,0.03]
[1752734044069,67.00758937,173.13,173.12,0.03]
[1752734044907,59.00069043,173.13,173.12,0.03]
[1752734045381,67.00758937,173.13,173.12,0.03]
[1752734046010,66.32758937,173.13,173.12,0.03]
[1752734046319,8.68689894,173.13,173.12,0.03]
[1752734046601,43.76689894,173.13,173.12,0.03]
[1752734046814,35.76,173.13,173.12,0.03]
[1752734047309,43.76689894,173.13,173.12,0.03]
[1752734047686,35.76,173.13,173.12,0.03]
[1752734047889,43.76689894,173.13,173.12,0.03]
[1752734048908,35.76,173.13,173.12,0.03]
[1752734049476,191.86689894,173.14,173.12,0.03]
[1752734049676,183.86,173.14,173.12,0.03]
[1752734049877,8.00689894,173.13,173.12,0.03]
[1752734050611,8.68689894,173.13,173.12,0.03]
[1752734051510,8.00689894,173.13,173.12,0.03]
[1752734051677,189.63571749,173.14,173.12,0.03]
[1752734051880,8.00689894,173.13,173.12,0.03]
[1752734053111,16.78468397,173.13,173.12,0.03]
[1752734053298,24.79158291,173.13,173.12,0.03]
[1752734053495,16.78468397,173.13,173.12,0.03]
[1752734053903,30.56758937,173.13,173.12,0.03]
[1752734054103,31.24758937,173.13,173.12,0.03]
[1752734055236,28.70267104,173.13,173.12,0.03]
[1752734056538,17.46468397,173.13,173.12,0.03]
[1752734056746,22.24666458,173.13,173.12,0.03]
[1752734056907,52.50468397,173.13,173.12,0.03]
[1752734057531,16.78468397,173.13,173.12,0.03]
[1752734057712,16.78468397,173.15,173.12,0.59]
[1752734058338,183.82,173.16,173.12,0.59]
[1752734058339,148.1,173.16,173.13,0.56]
[1752734058546,148.1,173.16,173.13,11.23795431]
[1752734058833,148.1,173.16,173.12,5.8063082]
[1752734059045,148.1,173.16,173.12,14.36924663]
[1752734059540,148.1,173.16,173.13,0.56]
[1752734059723,148.1,173.16,173.12,13.80924663]
[1752734059913,148.1,173.16,173.12,14.36924663]
[1752734060239,148.1,173.16,173.13,0.56]
[1752734060930,148.1,173.16,173.12,13.80924663]
[1752734061137,148.78,173.16,173.12,13.80924663]
[1752734061336,0.68,173.15,173.12,0.03]
[1752734061631,8.00293843,173.13,173.12,0.03]
[1752734062123,25.4676224,173.13,173.12,0.03]
[1752734062927,61.1676224,173.13,173.12,0.03]
[1752734063632,215.04362886,173.13,173.12,0.03]
[1752734064922,207.04069043,173.13,173.12,0.03]
[1752734065134,215.04362886,173.13,173.12,0.03]
[1752734068234,66.94362886,173.13,173.12,0.03]
[1752734069210,92.94362886,173.13,173.12,0.03]
[1752734071044,57.24362886,173.13,173.12,0.03]
[1752734071236,92.92362886,173.13,173.12,0.03]
[1752734071619,58.92069043,173.13,173.12,0.03]
[1752734071820,67.42362886,173.13,173.12,0.03]
[1752734072640,25.9676224,173.13,173.12,0.03]
[1752734072847,61.6276224,173.13,173.12,0.03]
[1752734073055,0.5,173.13,173.12,0.03]
[1752734073225,0.5,173.13,173.12,8.59293843]
[1752734074267,0.5,173.13,173.12,14.36927854]
[1752734074752,148.79,173.16,173.12,5.80634011]
[1752734075050,61.1376224,173.15,173.12,0.03]
[1752734075347,8.00293843,173.14,173.12,0.03]
[1752734075553,8.00293843,173.13,173.12,0.03]
[1752734076342,0.69,173.14,173.12,0.03]
[1752734076658,60.4476224,173.15,173.12,0.03]
[1752734076817,35.66,173.15,173.12,0.03]
[1752734077016,148.1,173.16,173.13,8.56293843]
[1752734077438,148.1,173.16,173.15,8.00293843]
[1752734077647,0.06,173.18,173.15,8.56293843]
[1752734078045,0.06,173.18,173.16,8.00293843]
[1752734078439,0.06,173.18,173.15,6.33515432]
[1752734078643,0.06,173.18,173.15,14.33809275]
[1752734079257,0.06,173.18,173.17,8.00293843]
[1752734080135,0.06,173.18,173.16,0.56]
[1752734080335,0.06,173.18,173.16,8.00293843]
[1752734080634,0.06,173.18,173.17,13.77761071]
[1752734082149,0.06,173.18,173.17,14.33761071]
[1752734082753,0.06,173.18,173.16,13.77786831]
[1752734083157,0.06,173.18,173.16,8.00293843]
[1752734083361,0.06,173.18,173.15,5.775317]
[1752734083561,0.06,173.18,173.14,7.98568103]
[1752734083866,0.06,173.18,173.14,13.77851946]
[1752734084268,8.75293843,173.18,173.13,11.9102023]
[1752734084445,0.69,173.17,173.13,13.77894073]
[1752734084648,8.69293843,173.17,173.12,36.21]
[1752734084868,14.46765192,173.17,173.12,49.98922773]
[1752734085174,0.06,173.18,173.14,8.00293843]
[1752734085364,0.06,173.18,173.15,8.00293843]
[1752734085563,5.83438287,173.18,173.13,8.56293843]
[1752734085874,8.00293843,173.15,173.12,0.03]
[1752734086054,8.00293843,173.13,173.12,0.03]
[1752734086252,60.3876224,173.13,173.12,0.03]
[1752734086563,61.0776224,173.13,173.12,0.03]
[1752734086769,66.85362886,173.13,173.12,0.03]
[1752734087377,8.00293843,173.13,173.12,0.03]
[1752734087749,8.69293843,173.13,173.12,0.03]
[1752734088360,0.69,173.13,173.12,0.03]
[1752734088560,23.25069043,173.13,173.12,0.03]
[1752734088847,31.25362886,173.13,173.12,0.03]
[1752734090574,31.25362886,173.13,173.08,0.03]
[1752734090575,16.78468397,173.1,173.08,0.03]
[1752734090778,5.77667379,173.11,173.08,0.03]
[1752734090964,60.3676224,173.1,173.08,0.03]
[1752734091169,61.0576224,173.1,173.08,0.03]
[1752734091367,8.69293843,173.09,173.08,0.03]
[1752734091790,14.47027969,173.09,173.08,0.03]
[1752734092669,31.25496366,173.09,173.08,0.03]
[1752734093175,31.7766538,173.12,173.08,0.03]
[1752734093374,30.5642762,173.12,173.08,0.03]
[1752734093575,0.69,173.11,173.08,0.03]
[1752734093749,8.00293843,173.1,173.08,0.03]
[1752734093956,8.70293843,173.1,173.08,0.03]
[1752734094156,60.3476224,173.11,173.08,0.03]
[1752734094377,52.34468397,173.11,173.08,0.03]
[1752734094569,35.56,173.11,173.08,0.03]
[1752734095083,41.33676575,173.11,173.08,0.03]
[1752734095590,0.7,173.1,173.08,0.03]
[1752734095798,8.70293843,173.1,173.08,0.03]
[1752734096550,61.0276224,173.09,173.08,0.03]
[1752734097065,53.02468397,173.09,173.08,0.03]
[1752734097265,58.80202523,173.09,173.08,0.03]
[1752734097980,66.80496366,173.09,173.08,0.03]
[1752734100874,58.08202523,173.09,173.08,0.03]
[1752734101081,66.78496366,173.09,173.08,0.03]
[1752734101855,92.78496366,173.09,173.08,0.03]
[1752734102276,22.56302674,173.06,173.05,0.03]
[1752734102478,66.08596517,173.06,173.05,0.03]
[1752734102686,66.78596517,173.06,173.05,0.03]
[1752734104074,16.78468397,173.05,173.02,0.03]
[1752734104277,30.56696702,173.03,173.02,0.03]
[1752734104868,31.26696702,173.03,173.02,0.03]
[1752734105586,23.26402859,173.03,173.02,0.03]
[1752734105886,31.26696702,173.03,173.02,0.03]
[1752734107170,39.26990545,173.03,173.01,0.2]
[1752734107372,60.9876224,173.02,173.01,1e-08]
[1752734107588,60.9876224,173.02,172.97,0.2]
[1752734107589,16.78468397,172.98,172.97,0.2]
[1752734107791,60.2876224,172.98,172.97,0.2]
[1752734108087,60.9876224,172.98,172.97,0.2]
[1752734108265,66.76863754,172.98,172.97,0.2]
[1752734108768,58.76569911,172.98,172.97,0.2]
[1752734108973,66.06863754,172.98,172.97,0.2]
[1752734109187,66.04863754,172.98,172.97,0.2]
[1752734109365,58.04569911,172.98,172.97,0.2]
[1752734109567,66.04863754,172.98,172.97,0.2]
[1752734110485,66.74863754,172.98,172.97,0.2]
[1752734110688,16.78468397,172.96,172.95,0.03]
[1752734110877,60.2676224,172.96,172.95,0.03]
[1752734111222,86.9676224,172.96,172.95,0.03]
[1752734111888,86.9676224,172.96,172.93,0.03]
[1752734111889,16.78468397,172.95,172.93,0.03]
[1752734112089,16.78468397,172.95,172.93,1e-08]
[1752734112090,42.78468397,172.94,172.93,1e-08]
[1752734112282,60.9676224,172.94,172.93,1e-08]
[1752734112589,68.39817466,172.94,172.93,1e-08]
[1752734113598,68.39817466,172.94,172.89,0.2]
[1752734113599,16.78468397,172.9,172.89,0.2]
[1752734113763,60.2676224,172.9,172.89,0.2]
[1752734114089,26.0,172.88,172.87,0.2]
[1752734114278,69.48293843,172.88,172.87,0.2]
[1752734114482,92.75198149,172.88,172.87,0.2]
[1752734115083,84.72904306,172.88,172.87,0.2]
[1752734115288,92.73198149,172.88,172.87,0.2]
[1752734115995,42.78468397,172.85,172.84,0.2]
[1752734116171,86.2476224,172.85,172.84,0.2]
[1752734116371,86.9476224,172.85,172.84,0.2]
[1752734116666,86.9476224,172.85,172.82,0.2]
[1752734116667,16.78468397,172.84,172.82,1e-08]
[1752734116886,60.2476224,172.83,172.82,1e-08]
[1752734117084,60.9476224,172.83,172.82,1e-08]
[1752734117272,86.9476224,172.83,172.82,1e-08]
[1752734117601,78.24468397,172.83,172.82,1e-08]
[1752734117797,86.2476224,172.83,172.82,1e-08]
[1752734118093,24.7876224,172.83,172.82,1e-08]
[1752734118295,16.78468397,172.83,172.82,1e-08]
[1752734118493,16.78468397,172.84,172.82,0.67000001]
[1752734118722,24.7876224,172.84,172.82,0.67000001]
[1752734118994,8.70293843,172.83,172.82,1e-08]
[1752734120582,14.48897094,172.83,172.82,1e-08]
[1752734121294,42.78468397,172.8,172.78,0.2]
[1752734121498,16.78468397,172.79,172.78,0.2]
[1752734121873,52.92468397,172.79,172.78,0.2]
[1752734122087,52.92468397,172.79,172.78,1e-08]
[1752734122291,60.9276224,172.79,172.78,1e-08]
[1752734122706,42.78468397,172.76,172.73,0.03]
[1752734122887,86.2276224,172.76,172.73,0.03]
[1752734123087,86.9276224,172.76,172.73,0.03]
[1752734123503,78.92468397,172.76,172.73,0.03]
[1752734123700,86.9276224,172.76,172.73,0.03]
[1752734124220,16.78468397,172.71,172.65,0.66]
[1752734124393,8.00293843,172.67,172.65,0.66]
[1752734124599,35.44,172.7,172.65,0.66]
[1752734124600,24.7876224,172.68,172.65,0.66]
[1752734124796,8.00293843,172.68,172.64,7.9169]
[1752734124996,24.7876224,172.71,172.67,8.00293843]
[1752734125202,8.00293843,172.7,172.67,0.66]
[1752734125407,52.22468397,172.71,172.67,0.66]
[1752734125607,8.00293843,172.69,172.67,0.66]
[1752734125807,52.22468397,172.71,172.67,0.66]
[1752734126012,8.00293843,172.7,172.67,0.66]
[1752734126241,16.78468397,172.69,172.64,8.5769]
[1752734126413,8.00293843,172.67,172.64,7.9169]
[1752734126590,5.7910586,172.68,172.62,0.66]
[1752734126790,22.57541719,172.69,172.62,8.66293843]
[1752734127114,60.2276224,172.7,172.65,8.00293843]
[1752734127291,52.22468397,172.7,172.66,0.66]
[1752734127612,8.00293843,172.69,172.66,0.66]
[1752734127800,16.78468397,172.71,172.67,0.66]
[1752734128113,16.78468397,172.71,172.68,0.66]
[1752734128416,14.6392852,172.72,172.69,0.66]
[1752734128620,8.00293843,172.71,172.66,13.7945972]
[1752734128917,8.00293843,172.7,172.67,0.66]
[1752734129118,12.42613208,172.72,172.67,0.66]
[1752734129119,13.10613208,172.72,172.67,0.66]
[1752734129416,8.00293843,172.7,172.64,0.66]
[1752734129624,8.00293843,172.69,172.64,0.66]
[1752734129789,0.68,172.7,172.64,8.66293843]
[1752734129790,8.00293843,172.68,172.64,8.66293843]
[1752734130114,8.00293843,172.67,172.63,8.00293843]
[1752734130288,8.00293843,172.65,172.62,0.66]
[1752734130490,8.00293843,172.65,172.6,16.63393843]
[1752734130796,8.00293843,172.65,172.61,0.66]
[1752734131112,8.00293843,172.67,172.62,8.66293843]
[1752734131286,8.00293843,172.67,172.63,0.66]
[1752734131689,8.00293843,172.69,172.64,8.66293843]
[1752734131912,6.63634677,172.72,172.68,8.00293843]
[1752734132115,6.63634677,172.72,172.69,8.66293843]
[1752734132625,6.63634677,172.72,172.7,0.66]
[1752734132992,6.63634677,172.72,172.68,0.66]
[1752734133195,20.42910479,172.72,172.67,8.00293843]
[1752734133397,20.42910479,172.72,172.66,0.66]
[1752734133398,16.78468397,172.7,172.66,0.66]
[1752734133702,16.78468397,172.66,172.61,0.66]
[1752734133902,24.7876224,172.66,172.61,8.66293843]
[1752734134219,16.78468397,172.66,172.62,0.66]
[1752734134426,16.78468397,172.66,172.62,8.00293843]
[1752734134597,24.7876224,172.68,172.63,8.66293843]
[1752734134920,24.7876224,172.68,172.64,0.66]
[1752734135133,16.78468397,172.68,172.64,8.66293843]
[1752734135300,24.7876224,172.68,172.64,0.66]
[1752734135502,30.57874505,172.68,172.64,0.66]
[1752734135838,13.79367877,172.69,172.64,14.45524685]
[1752734136000,13.79367877,172.69,172.65,8.66293843]
[1752734136204,8.00293843,172.69,172.65,0.66]
[1752734136697,16.78468397,172.7,172.66,0.66]
[1752734136916,6.63634677,172.72,172.67,8.66293843]
[1752734137116,16.78468397,172.71,172.68,0.66]
[1752734137506,6.63634677,172.72,172.69,8.66293843]
[1752734137704,6.63634677,172.72,172.69,0.66]
[1752734138436,6.63634677,172.72,172.69,8.66293843]
[1752734139139,6.63634677,172.72,172.68,8.00293843]
[1752734139426,7.31634677,172.72,172.68,8.00293843]
[1752734140229,6.63634677,172.72,172.68,8.66293843]
[1752734141430,0.68,172.71,172.65,5.79206487]
[1752734141729,8.00293843,172.7,172.65,8.00293843]
[1752734141918,8.68293843,172.7,172.66,8.00293843]
[1752734142102,0.68,172.7,172.66,8.00293843]
[1752734142297,6.63634677,172.72,172.67,8.66293843]
[1752734142503,6.63634677,172.72,172.69,8.00293843]
[1752734142815,6.63634677,172.72,172.69,8.66293843]
[1752734143009,6.63634677,172.72,172.69,8.00293843]
[1752734143215,6.63634677,172.72,172.67,0.66]
[1752734143216,12.42610153,172.72,172.67,0.66]
[1752734143412,25.4676224,172.71,172.66,8.00293843]
[1752734143726,8.00293843,172.7,172.65,13.79489845]
[1752734143914,25.4676224,172.71,172.66,8.66293843]
[1752734144108,25.4676224,172.71,172.67,8.00293843]
[1752734144435,16.78468397,172.69,172.64,26.69]
[1752734144642,25.4676224,172.69,172.64,34.69293843]
[1752734144804,25.4676224,172.69,172.65,8.00293843]
[1752734145004,24.7876224,172.69,172.65,8.66293843]
[1752734145514,16.78468397,172.71,172.67,8.00293843]
[1752734145707,14.6392852,172.72,172.68,8.00293843]
[1752734146120,6.63634677,172.72,172.69,8.00293843]
[1752734146737,6.63634677,172.72,172.69,13.7935981]
[1752734147032,6.63634677,172.72,172.71,8.00293843]
[1752734147220,0.06,172.73,172.71,8.66293843]
[1752734147405,0.06,172.73,172.72,8.66293843]
[1752734148413,0.06,172.73,172.72,14.45265589]
[1752734149535,0.06,172.73,172.72,40.45265589]
[1752734149835,0.06,172.8,172.72,40.45265589]
[1752734149836,0.06,172.8,172.75,26.0]
[1752734150006,0.06,172.8,172.79,8.00293843]
[1752734150436,0.06,172.8,172.79,8.66293843]
[1752734150638,0.06,172.8,172.79,14.45031038]
[1752734151609,7.19175288,172.86,172.79,14.45031038]
[1752734151610,7.19175288,172.86,172.82,26.0]
[1752734151811,16.78468397,172.9,172.83,0.66]
[1752734152017,16.78468397,172.9,172.87,8.00293843]
[1752734152261,0.78,172.91,172.88,8.00293843]
[1752734152450,0.78,172.91,172.85,0.66]
[1752734152661,0.78,172.91,172.86,5.78502834]
[1752734152851,0.78,172.91,172.85,6.4452977]
[1752734153165,16.78468397,172.9,172.83,35.96]
[1752734153324,8.00293843,172.89,172.83,35.3]
[1752734153654,24.7876224,172.87,172.81,0.66]
[1752734153953,8.00293843,172.85,172.8,8.00293843]
[1752734154153,8.66293843,172.85,172.8,0.72]
[1752734154454,8.00293843,172.85,172.8,8.00293843]
[1752734154636,0.66,172.84,172.8,8.00293843]
[1752734154838,14.44866245,172.84,172.79,8.00293843]
[1752734155241,0.66,172.83,172.78,62.0]
[1752734155554,8.00293843,172.81,172.78,26.0]
[1752734155724,8.00293843,172.79,172.73,8.72293843]
[1752734155927,8.00293843,172.77,172.72,8.00293843]
[1752734156122,8.00293843,172.78,172.73,8.00293843]
[1752734156430,0.66,172.77,172.73,8.00293843]
[1752734156930,14.45098879,172.77,172.72,8.00293843]
[1752734157325,14.45098879,172.77,172.72,34.00293843]
[1752734157659,0.66,172.76,172.72,34.00293843]
[1752734157949,0.66,172.76,172.72,8.00293843]
[1752734158150,0.66,172.76,172.72,34.00293843]
[1752734158364,8.00293843,172.77,172.72,34.00293843]
[1752734158530,8.00293843,172.77,172.72,40.51264973]
[1752734158723,14.45068206,172.78,172.73,8.00293843]
[1752734158926,14.4511025,172.77,172.72,34.72293843]
[1752734159241,0.66,172.76,172.72,34.00293843]
[1752734159435,0.66,172.76,172.72,26.0]
[1752734159618,13.7911025,172.77,172.73,0.72]
[1752734159619,8.00293843,172.77,172.73,0.72]
[1752734159823,0.66,172.79,172.74,8.00293843]
[1752734160061,8.66293843,172.79,172.74,8.00293843]
[1752734160366,16.78468397,172.81,172.72,39.79258417]
[1752734160367,8.00293843,172.77,172.72,39.79258417]
[1752734160655,8.66293843,172.77,172.72,34.00293843]
[1752734161145,8.66293843,172.77,172.72,39.79252868]
[1752734161352,0.66,172.77,172.72,32.50959025]
[1752734161521,0.66,172.77,172.73,8.00293843]
[1752734161934,8.00293843,172.78,172.73,8.72293843]
[1752734162257,8.66293843,172.77,172.73,8.00293843]
[1752734162430,8.00293843,172.77,172.72,34.00293843]
[1752734162625,0.66,172.76,172.72,34.00293843]
[1752734162821,16.78468397,172.75,172.71,35.26]
[1752734163063,8.66293843,172.74,172.69,43.20293843]
[1752734163233,8.00293843,172.75,172.7,8.00293843]
[1752734163552,8.66293843,172.75,172.69,41.71048471]
[1752734163758,8.66293843,172.75,172.7,8.00293843]
[1752734163939,8.00293843,172.75,172.7,8.72293843]
[1752734164136,16.78468397,172.78,172.71,0.72]
[1752734164542,16.78468397,172.78,172.75,8.00293843]
[1752734164866,8.72293843,172.79,172.73,0.72]
[1752734165028,8.72293843,172.79,172.74,8.00293843]
[1752734165233,0.66,172.78,172.74,8.00293843]
[1752734165448,0.66,172.78,172.73,6.50936731]
[1752734165764,0.66,172.78,172.74,8.00293843]
[1752734166059,0.5,172.77,172.74,8.00293843]
[1752734166356,0.66,172.76,172.72,43.20293843]
[1752734167642,0.66,172.75,172.72,35.2]
[1752734167838,0.66,172.75,172.69,41.69065795]
[1752734168247,8.66293843,172.75,172.7,8.00293843]
[1752734168447,0.66,172.74,172.7,8.00293843]
[1752734168959,0.66,172.74,172.69,41.69065795]
[1752734169164,0.66,172.74,172.71,8.00293843]
[1752734169356,6.44919537,172.74,172.69,35.9]
[1752734169556,6.44919537,172.74,172.7,8.00293843]
[1752734169759,0.66,172.73,172.69,35.9]
[1752734170056,0.66,172.73,172.69,43.18293843]
[1752734170247,0.66,172.73,172.69,35.18]
[1752734170637,0.66,172.73,172.69,43.18293843]
[1752734170839,0.66,172.72,172.68,8.00293843]
[1752734171298,0.66,172.72,172.67,41.6712108]
[1752734171449,0.66,172.72,172.68,8.00293843]
[1752734171651,0.66,172.72,172.67,41.6712108]
[1752734171958,0.66,172.72,172.68,14.51392391]
[1752734172163,30.57715984,172.73,172.68,14.51392391]
[1752734172346,31.23715984,172.73,172.68,14.51392391]
[1752734172656,25.4476224,172.73,172.68,6.51098548]
[1752734172863,148.1,172.76,172.68,6.51098548]
[1752734172864,148.1,172.76,172.69,0.72]
[1752734173076,148.1,172.76,172.73,8.00293843]
[1752734173235,148.1,172.76,172.74,8.00293843]
[1752734174050,16.78468397,172.75,172.72,8.00293843]
[1752734174252,17.44468397,172.75,172.71,35.14]
[1752734174476,16.78468397,172.75,172.72,8.00293843]
[1752734174639,16.78468397,172.73,172.69,41.65066149]
[1752734174846,16.78468397,172.73,172.71,8.00293843]
[1752734175245,16.78468397,172.73,172.69,41.65066149]